fUSD/lending_fUSD_20240728
["ID","MTS","AMOUNT","RATE_DAILY","PERIOD"]
[333475336,1722172232343,-4200.0,9.864e-05,2]
[333475337,1722172232353,-800.0,9.864e-05,2]
[333475338,1722172232362,-1700.0,9.864e-05,2]
[333475339,1722172232372,-7600.0,9.864e-05,2]
[333475340,1722172232381,-421.25,9.864e-05,2]
[333475341,1722172232390,-7830.25,9.864e-05,2]
[333475342,1722172232400,-499.99,9.864e-05,2]
[333475343,1722172232409,-2918.32,9.864e-05,2]
[333475344,1722172232418,-612.68,9.864e-05,2]
[333475345,1722172232427,-299.99,9.864e-05,2]
[333475346,1722172232437,-150.99,9.864e-05,2]
[333475347,1722172232446,-1500.0,9.864e-05,2]
[333475348,1722172232455,-300.0,9.9e-05,3]
[333475349,1722172232464,-587.0,9.945e-05,2]
[333475351,1722172232473,-158.93,9.981e-05,2]
[333475353,1722172232482,-1250.0,0.0001,2]
[333475355,1722172232491,-700.0,0.0001,3]
[333475357,1722172232500,-1000.0,0.000101,3]
[333475359,1722172232510,-658.4187,0.000102,2]
[333475361,1722172232519,-1400.0,0.000102,3]
[333475363,1722172232531,-1800.0,0.000103,3]
[333475365,1722172232540,-300.0,0.000104,3]
[333475367,1722172232549,-288.96,0.00010468,2]
[333475369,1722172232559,-300.0,0.000105,3]
[333475370,1722172232568,-300.0,0.000106,3]
[333475372,1722172232577,-150.0,0.00010678,2]
[333475374,1722172232586,-4200.0,0.00010686,2]
[333475376,1722172232595,-800.0,0.00010686,2]
[333475378,1722172232605,-1700.0,0.00010686,2]
[333475380,1722172232614,-7600.0,0.00010686,2]
[333475382,1722172232623,-300.0,0.000107,3]
[333475384,1722172232633,-150.0,0.00010778,2]
[333475386,1722172232642,-150.0,0.00010778,2]
[333475388,1722172232651,-150.0,0.00010778,2]
[333475390,1722172232660,-150.0,0.00010778,2]
[333475392,1722172232669,-1966.9382,0.0001079,2]
[333475394,1722172232678,-2239.1797,0.0001079,2]
[333475396,1722172232687,-12967.3785,0.000108,2]
[333475398,1722172232696,-894.0,0.000108,3]
[333475400,1722172232706,-11909.8311,0.0001089,2]
[333475402,1722172232715,-2328.0836,0.0001089,2]
[333475404,1722172232724,-933.3897,0.0001089,2]
[333475406,1722172232734,-152.48282064,0.00010899,2]
[333475408,1722172232743,-152.48282064,0.00010899,2]
[333475410,1722172232753,-44819.2056,0.000109,2]
[333475412,1722172232763,-28055.714,0.000109,2]
[333475414,1722172232772,-2609.4423,0.000109,2]
[333475416,1722172232782,-1210.5667182,0.000109,2]
[333475418,1722172232792,-1210.5667182,0.000109,2]
[333475420,1722172232801,-1210.5667182,0.000109,2]
[333475422,1722172232811,-1210.5667182,0.000109,2]
[333475424,1722172232821,-1210.5667182,0.000109,2]
[333475426,1722172232830,-1210.5667182,0.000109,2]
[333475428,1722172232839,-152.48282064,0.000109,2]
[333475430,1722172232848,-500.0,0.00010912,2]
[333475432,1722172232858,-823.0,0.00010939,2]
[333475434,1722172232867,-200.0,0.00010947,2]
[333475436,1722172232876,-3427.02175482,0.00010957,2]
[333475438,1722172232885,-500.0,0.00010958,2]
[333475440,1722172232894,-1939.66,0.00010958,2]
[333475442,1722172232903,-534.93394803,0.00010958,2]
[333475444,1722172232913,-200.0,0.00010959,2]
[333475445,1722172232923,-8075.0,0.00010959,2]
[333475447,1722172232932,-150.0,0.00010959,2]
[333475449,1722172232941,-255.391,0.00010988,2]
[333475451,1722172232951,-500.0,0.00010989,2]
[333475453,1722172232960,-500.0,0.00010989,2]
[333475455,1722172232969,-500.0,0.00010989,2]
[333475457,1722172232979,-500.0,0.00010989,2]
[333475458,1722172232988,-500.0,0.00010989,2]
[333475459,1722172232998,-500.0,0.00010989,2]
[333475460,1722172233007,-500.0,0.00010989,2]
[333475461,1722172233017,-500.0,0.00010989,2]
[333475462,1722172233027,-500.0,0.00010989,2]
[333475463,1722172233037,-500.0,0.00010989,2]
[333475464,1722172233046,-500.0,0.00010989,2]
[333475465,1722172233056,-500.0,0.00010989,2]
[333475466,1722172233065,-1580.0,0.00010996,2]
[333475467,1722172233075,-362.0,0.00010996,2]
[333475468,1722172233085,-1253.0,0.00010996,2]
[333475469,1722172233094,-450.0,0.00010996,2]
[333475470,1722172233104,-199.0,0.00010996,2]
[333475471,1722172233113,-800.0,0.00010998,2]
[333475472,1722172233123,-437.90461032,0.00010999,2]
[333475473,1722172233132,-500.0,0.00010999,2]
[333475474,1722172233141,-500.0,0.00010999,2]
[333475475,1722172233151,-500.0,0.00010999,2]
[333475476,1722172233160,-500.0,0.00010999,2]
[333475477,1722172233169,-500.0,0.00010999,2]
[333475478,1722172233181,-500.0,0.00010999,2]
[333475479,1722172233190,-500.0,0.00010999,2]
[333475480,1722172233200,-500.0,0.00010999,2]
[333475481,1722172233209,-500.0,0.00010999,2]
[333475482,1722172233218,-500.0,0.00010999,2]
[333475483,1722172233227,-500.0,0.00010999,2]
[333475484,1722172233236,-500.0,0.00010999,2]
[333475485,1722172233245,-500.0,0.00010999,2]
[333475486,1722172233255,-500.0,0.00010999,2]
[333475487,1722172233264,-500.0,0.00010999,2]
[333475488,1722172233273,-500.0,0.00010999,2]
[333475489,1722172233283,-500.0,0.00010999,2]
[333475490,1722172233292,-500.0,0.00010999,2]
[333475491,1722172233301,-500.0,0.00010999,2]
[333475492,1722172233311,-500.0,0.00010999,2]
[333475493,1722172233320,-500.0,0.00010999,2]
[333475494,1722172233329,-500.0,0.00010999,2]
[333475495,1722172233338,-500.0,0.00010999,2]
[333475496,1722172233348,-500.0,0.00010999,2]
[333475497,1722172233357,-500.0,0.00010999,2]
[333475498,1722172233366,-500.0,0.00010999,2]
[333475499,1722172233375,-354.55,0.00010999,2]
[333475500,1722172233384,-500.0,0.00010999,2]
[333475501,1722172233393,-500.0,0.00010999,2]
[333475502,1722172233402,-500.0,0.00010999,2]
[333475503,1722172233411,-500.0,0.00010999,2]
[333475504,1722172233420,-500.0,0.00010999,2]
[333475505,1722172233429,-359.89,0.00010999,2]
[333475506,1722172233439,-500.0,0.00010999,2]
[333475507,1722172233448,-500.0,0.00010999,2]
[333475508,1722172233457,-442.1750984,0.00010999,2]
[333475509,1722172233466,-450.7,0.00010999,2]
[333475510,1722172233475,-601.14101666,0.00010999,2]
[333475511,1722172233484,-500.0,0.00010999,2]
[333475512,1722172233494,-500.0,0.00010999,2]
[333475513,1722172233504,-500.0,0.00010999,2]
[333475514,1722172233515,-458.87,0.00010999,2]
[333475515,1722172233527,-500.0,0.00010999,2]
[333475516,1722172233537,-500.0,0.00010999,2]
[333475517,1722172233546,-500.0,0.00010999,2]
[333475518,1722172233555,-500.0,0.00010999,2]
[333475519,1722172233565,-500.0,0.00010999,2]
[333475520,1722172233574,-500.0,0.00010999,2]
[333475521,1722172233583,-500.0,0.00010999,2]
[333475522,1722172233592,-500.0,0.00010999,2]
[333475523,1722172233602,-500.0,0.00010999,2]
[333475524,1722172233611,-500.0,0.00010999,2]
[333475525,1722172233621,-500.0,0.00010999,2]
[333475526,1722172233630,-500.0,0.00010999,2]
[333475527,1722172233640,-500.0,0.00010999,2]
[333475528,1722172233649,-500.0,0.00010999,2]
[333475529,1722172233658,-500.0,0.00010999,2]
[333475530,1722172233668,-500.0,0.00010999,2]
[333475531,1722172233677,-500.0,0.00010999,2]
[333475532,1722172233687,-500.0,0.00010999,2]
[333475533,1722172233696,-500.0,0.00010999,2]
[333475534,1722172233705,-500.0,0.00010999,2]
[333475535,1722172233715,-371.33980903,0.00010999,2]
[333475536,1722172233725,-500.0,0.00010999,2]
[333475537,1722172233734,-500.0,0.00010999,2]
[333475538,1722172233743,-340.36,0.00010999,2]
[333475539,1722172233754,-1546.97,0.00010999,2]
[333475540,1722172233763,-455.33241778,0.00010999,2]
[333475541,1722172233772,-1939.66,0.00010999,2]
[333475542,1722172233781,-1939.66,0.00010999,2]
[333475543,1722172233791,-1939.66,0.00010999,2]
[333475544,1722172233800,-1939.66,0.00010999,2]
[333475545,1722172233809,-1939.66,0.00010999,2]
[333475546,1722172233818,-1939.66,0.00010999,2]
[333475547,1722172233828,-1939.66,0.00010999,2]
[333475548,1722172233837,-1939.66,0.00010999,2]
[333475549,1722172233847,-1939.66,0.00010999,2]
[333475550,1722172233857,-1939.66,0.00010999,2]
[333475551,1722172233867,-1939.66,0.00010999,2]
[333475552,1722172233877,-1939.66,0.00010999,2]
[333475553,1722172233887,-1939.66,0.00010999,2]
[333475554,1722172233897,-1939.66,0.00010999,2]
[333475555,1722172233907,-1939.66,0.00010999,2]
[333475556,1722172233917,-1939.66,0.00010999,2]
[333475557,1722172233926,-1939.66,0.00010999,2]
[333475558,1722172233936,-1939.66,0.00010999,2]
[333475559,1722172233946,-1939.66,0.00010999,2]
[333475560,1722172233955,-1939.66,0.00010999,2]
[333475561,1722172233965,-1939.66,0.00010999,2]
[333475562,1722172233975,-1939.66,0.00010999,2]
[333475563,1722172233984,-1939.82,0.00010999,2]
[333475564,1722172233994,-33006.0,0.00011,2]
[333475565,1722172234004,-80545.16235698,0.00011,2]
[333475566,1722172234018,-3264.79091151,0.00011,2]
[333475567,1722172234030,-2623.158139,0.00011,2]
[333475568,1722172234043,-885349.58167244,0.00011,2]
[333475569,1722172234055,-3689.24344746,0.00011,2]
[333475570,1722172234077,-3832.64287863,0.00011,2]
[333475571,1722172234089,-14198.30525229,0.00011,2]
[333475572,1722172234101,-46351.68907466,0.00011,2]
[333475573,1722172234116,-4782.84240991,0.00011,2]
[333475574,1722172234128,-626.730532,0.00011,2]
[333475575,1722172234140,-5710.98748693,0.00011,2]
[333475576,1722172234151,-505.95034743,0.00011,2]
[333475577,1722172234163,-965.41908988,0.00011,2]
[333475578,1722172234174,-346.48303694,0.00011,2]
[333475579,1722172234377,-2121.37763752,0.00011,2]
[333475580,1722172234398,-466.63551131,0.00011,2]
[333475581,1722172234409,-7458.35511987,0.00011,2]
[333475589,1722172238160,-1178.618413,0.00011,2]
[333475590,1722172238172,-6628.30439943,0.00011,2]
[333475594,1722172238216,-358.33485164,0.00011,2]
[333475595,1722172238227,-53622.47592908,0.00011,2]
[333475596,1722172238274,-628.66127068,0.00011,2]
[333475597,1722172238284,-914.0500234,0.00011,2]
[333475598,1722172238295,-2166.78342138,0.00011,2]
[333475599,1722172238306,-7734.20720704,0.00011,2]
[333475600,1722172238330,-11911.24209814,0.00011,2]
[333475601,1722172238341,-5556.73676619,0.00011,2]
[333475602,1722172238352,-122714.12827074,0.00011,2]
[333475603,1722172238361,-88422.37523209,0.00011,2]
[333475604,1722172238441,-282.04696975,0.00011,2]
[333475605,1722172238454,-566.76354058,0.00011,2]
[333475606,1722172238467,-778.63202683,0.00011,2]
[333475608,1722172240226,-3281.9,0.00011,2]
[333475609,1722172240389,-337.94,0.00011,2]
[333475610,1722172240447,-5814.69499965,0.00011,2]
[333475611,1722172240458,-3094.16293897,0.00011,2]
[333475612,1722172240470,-60860.16412772,0.00011,2]
[333475613,1722172240558,-264.18399518,0.00011,2]
[333475691,1722172243206,-711.82512358,0.00011,2]
[333475692,1722172243262,-614.29174979,0.00011,2]
[333475693,1722172243325,-2724.565046,0.00011,2]
[333475694,1722172243379,-89968.78121297,0.00011,2]
[333475695,1722172243389,-613624.29309824,0.00011,2]
[333475696,1722172243434,-2080.68,0.00011,2]
[333475697,1722172243447,-955.62140526,0.00011,2]
[333475700,1722172246300,-27777.27753824,0.00011,2]
[333475701,1722172246360,-335.451,0.00011,2]
[333475702,1722172246372,-1611.52711932,0.00011,2]
[333475703,1722172246421,-1902.3193438,0.00011,2]
[333475704,1722172246479,-859.59283247,0.00011,2]
[333475768,1722173432366,-300.0,8.219e-05,2]
[333475769,1722173432376,-150.0,8.219e-05,2]
[333475770,1722173432386,-279.4,8.219e-05,2]
[333475771,1722173432395,-2800.0,8.22e-05,2]
[333475772,1722173432404,-600.0,8.22e-05,2]
[333475773,1722173432413,-98.6863352,8.22e-05,2]
[333475774,1722173432435,-494.0133311,8.22e-05,2]
[333475775,1722173432503,-507.3003337,8.22e-05,2]
[333475776,1722173432512,-1602.13707985,8.22e-05,2]
[333475777,1722173432524,-3597.86292015,8.22e-05,2]
[333475778,1722173432534,-1200.0,8.22e-05,2]
[333475779,1722173432543,-662.21155,9e-05,2]
[333475780,1722173432552,-524.37738438,9e-05,2]
[333475781,1722173432561,-420.0,9.041e-05,2]
[333475782,1722173432570,-255.0,9.041e-05,2]
[333475783,1722173432579,-2800.0,9.042e-05,2]
[333475784,1722173432588,-600.0,9.042e-05,2]
[333475785,1722173432597,-1100.0,9.042e-05,2]
[333475786,1722173432606,-5200.0,9.042e-05,2]
[333475787,1722173432615,-200.0,9.257e-05,2]
[333475788,1722173432624,-23890.0,9.321e-05,2]
[333475789,1722173432633,-5685.34,9.426e-05,2]
[333475790,1722173432642,-250.0,9.429e-05,2]
[333475791,1722173432651,-965.28,9.467e-05,2]
[333475792,1722173432660,-200.0,9.476e-05,2]
[333475793,1722173432669,-480.0,9.629e-05,2]
[333475794,1722173432678,-357.07,9.808e-05,2]
[333475795,1722173432687,-520.0,9.859e-05,2]
[333475796,1722173432696,-179.99,9.859e-05,2]
[333475797,1722173432705,-150.99,9.859e-05,2]
[333475798,1722173432714,-2800.0,9.864e-05,2]
[333475799,1722173432723,-600.0,9.864e-05,2]
[333475800,1722173432732,-1100.0,9.864e-05,2]
[333475801,1722173432742,-5200.0,9.864e-05,2]
[333475802,1722173432751,-299.99,9.864e-05,2]
[333475803,1722173432760,-692.47,9.864e-05,2]
[333475804,1722173432769,-4686.42,9.864e-05,2]
[333475806,1722173432779,-499.99,9.864e-05,2]
[333475808,1722173432788,-1200.0,9.864e-05,2]
[333475809,1722173432797,-587.0,9.945e-05,2]
[333475810,1722173432806,-171.4,9.953e-05,2]
[333475811,1722173432815,-11198.67964184,0.0001,5]
[333475812,1722173432824,-1250.0,0.0001,2]
[333475813,1722173432833,-420.06,0.00010055,2]
[333475814,1722173432842,-891.76,0.00010441,2]
[333475815,1722173432851,-420.34,0.00010441,2]
[333475816,1722173432861,-420.34,0.00010441,2]
[333475817,1722173432870,-420.34,0.00010441,2]
[333475818,1722173432879,-279.4,0.0001046,2]
[333475819,1722173432888,-150.0,0.00010466,2]
[333475820,1722173432897,-14413.0,0.00010565,2]
[333475821,1722173432906,-2800.0,0.00010686,2]
[333475822,1722173432915,-1100.0,0.00010686,2]
[333475823,1722173432924,-5200.0,0.00010686,2]
[333475824,1722173432933,-3371.2748,0.000107,2]
[333475825,1722173432943,-1800.9031,0.000107,2]
[333475826,1722173432952,-2026.2416,0.000107,2]
[333475827,1722173432961,-75765.3967,0.000107,2]
[333475828,1722173432970,-1210.9781,0.000108,2]
[333475829,1722173432979,-8185.6057,0.000108,2]
[333475830,1722173432988,-144251.8373,0.000108,2]
[333475831,1722173432997,-1000.0,0.000108,2]
[333475832,1722173433007,-372.65442476,0.000108,2]
[333475833,1722173433016,-372.65442476,0.00010825,2]
[333475834,1722173433026,-480.0,0.00010833,2]
[333475835,1722173433036,-372.65442476,0.0001085,2]
[333475836,1722173433045,-372.65442476,0.00010875,2]
[333475837,1722173433055,-8073.05008198,0.0001088,2]
[333475838,1722173433064,-5243.8644,0.00010899,2]
[333475839,1722173433073,-541.6496,0.00010899,2]
[333475840,1722173433082,-167.5151402,0.00010899,2]
[333475841,1722173433092,-500.0,0.000109,2]
[333475842,1722173433101,-13256.8447,0.000109,2]
[333475843,1722173433110,-90921.18444243,0.000109,2]
[333475844,1722173433123,-9078.81555757,0.000109,2]
[333475845,1722173433132,-208.67051964,0.000109,2]
[333475846,1722173433142,-164.77839754,0.000109,2]
[333475847,1722173433151,-847.39670274,0.000109,2]
[333475848,1722173433160,-847.39670274,0.000109,2]
[333475849,1722173433170,-847.39670274,0.000109,2]
[333475850,1722173433180,-847.39670274,0.000109,2]
[333475851,1722173433190,-847.39670274,0.000109,2]
[333475852,1722173433199,-847.39670274,0.000109,2]
[333475853,1722173433209,-847.39670274,0.000109,2]
[333475854,1722173433218,-847.39670274,0.000109,2]
[333475855,1722173433231,-847.39670274,0.000109,2]
[333475856,1722173433240,-167.5151402,0.000109,2]
[333475857,1722173433250,-372.65442476,0.000109,2]
[333475858,1722173433259,-520.77253694,0.000109,2]
[333475859,1722173433270,-500.0,0.00010912,2]
[333475860,1722173433280,-229.852,0.00010931,2]
[333475861,1722173433289,-823.0,0.00010939,2]
[333475862,1722173433299,-3084.31957934,0.00010956,2]
[333475863,1722173433310,-2597.54,0.00010958,2]
[333475864,1722173433320,-500.0,0.00010958,2]
[333475865,1722173433329,-500.0,0.00010958,2]
[333475866,1722173433340,-544.82439477,0.00010958,2]
[333475867,1722173433349,-309.04,0.00010958,2]
[333475868,1722173433359,-500.0,0.00010958,2]
[333475869,1722173433368,-500.0,0.00010958,2]
[333475870,1722173433377,-500.0,0.00010958,2]
[333475871,1722173433386,-500.0,0.00010958,2]
[333475872,1722173433397,-500.0,0.00010958,2]
[333475873,1722173433406,-546.89834449,0.00010958,2]
[333475874,1722173433416,-500.0,0.00010958,2]
[333475875,1722173433426,-500.0,0.00010958,2]
[333475876,1722173433435,-500.0,0.00010958,2]
[333475877,1722173433444,-500.0,0.00010958,2]
[333475878,1722173433454,-500.0,0.00010958,2]
[333475879,1722173433463,-500.0,0.00010958,2]
[333475880,1722173433472,-500.0,0.00010958,2]
[333475881,1722173433483,-500.0,0.00010958,2]
[333475882,1722173433492,-500.0,0.00010958,2]
[333475883,1722173433501,-500.0,0.00010958,2]
[333475884,1722173433511,-500.0,0.00010958,2]
[333475885,1722173433520,-631.52,0.00010958,2]
[333475886,1722173433531,-500.0,0.00010958,2]
[333475887,1722173433541,-507.92982096,0.00010958,2]
[333475888,1722173433550,-500.0,0.00010958,2]
[333475889,1722173433560,-560.91061333,0.00010958,2]
[333475890,1722173433569,-500.0,0.00010958,2]
[333475891,1722173433579,-500.0,0.00010958,2]
[333475892,1722173433588,-500.0,0.00010958,2]
[333475893,1722173433597,-500.0,0.00010958,2]
[333475894,1722173433607,-559.7,0.00010958,2]
[333475895,1722173433616,-500.0,0.00010958,2]
[333475896,1722173433626,-500.0,0.00010958,2]
[333475897,1722173433635,-500.0,0.00010958,2]
[333475898,1722173433644,-500.0,0.00010958,2]
[333475899,1722173433653,-500.0,0.00010958,2]
[333475900,1722173433663,-500.0,0.00010958,2]
[333475901,1722173433672,-500.0,0.00010958,2]
[333475902,1722173433681,-500.0,0.00010958,2]
[333475903,1722173433691,-500.0,0.00010958,2]
[333475904,1722173433700,-500.0,0.00010958,2]
[333475905,1722173433709,-500.0,0.00010958,2]
[333475906,1722173433718,-500.0,0.00010958,2]
[333475907,1722173433727,-500.0,0.00010958,2]
[333475908,1722173433737,-500.0,0.00010958,2]
[333475909,1722173433746,-548.89674557,0.00010958,2]
[333475910,1722173433755,-500.0,0.00010958,2]
[333475911,1722173433764,-569.91,0.00010958,2]
[333475912,1722173433774,-547.27,0.00010958,2]
[333475913,1722173433783,-500.0,0.00010958,2]
[333475914,1722173433792,-500.0,0.00010958,2]
[333475915,1722173433802,-500.0,0.00010958,2]
[333475916,1722173433811,-500.0,0.00010958,2]
[333475917,1722173433821,-500.0,0.00010958,2]
[333475918,1722173433831,-500.0,0.00010958,2]
[333475919,1722173433840,-500.0,0.00010958,2]
[333475920,1722173433849,-500.0,0.00010958,2]
[333475921,1722173433859,-500.0,0.00010958,2]
[333475922,1722173433868,-500.0,0.00010958,2]
[333475923,1722173433877,-500.0,0.00010958,2]
[333475924,1722173433886,-500.0,0.00010958,2]
[333475925,1722173433895,-500.0,0.00010958,2]
[333475926,1722173433905,-552.02,0.00010958,2]
[333475927,1722173433914,-501.50304602,0.00010958,2]
[333475928,1722173433923,-500.0,0.00010958,2]
[333475929,1722173433932,-500.0,0.00010958,2]
[333475930,1722173433942,-551.36,0.00010958,2]
[333475931,1722173433951,-170.79562644,0.00010958,2]
[333475932,1722173433960,-500.0,0.00010958,2]
[333475933,1722173433969,-505.66422382,0.00010958,2]
[333475934,1722173433978,-500.0,0.00010958,2]
[333475935,1722173433987,-503.51215744,0.00010958,2]
[333475936,1722173434001,-500.0,0.00010958,2]
[333475937,1722173434010,-500.0,0.00010958,2]
[333475938,1722173434020,-500.0,0.00010958,2]
[333475939,1722173434029,-500.0,0.00010958,2]
[333475940,1722173434039,-503.1952271,0.00010958,2]
[333475941,1722173434048,-500.0,0.00010958,2]
[333475942,1722173434058,-502.44981584,0.00010958,2]
[333475943,1722173434068,-588.86,0.00010958,2]
[333475944,1722173434077,-500.0,0.00010958,2]
[333475945,1722173434087,-502.41858159,0.00010958,2]
[333475946,1722173434096,-500.0,0.00010958,2]
[333475947,1722173434333,-500.0,0.00010958,2]
[333475948,1722173434342,-576.05,0.00010958,2]
[333475949,1722173434352,-583.78,0.00010958,2]
[333475950,1722173434362,-500.0,0.00010958,2]
[333475951,1722173434372,-450.0,0.00010958,2]
[333475952,1722173434382,-541.63,0.00010958,2]
[333475953,1722173434392,-513.52,0.00010958,2]
[333475954,1722173434402,-500.0,0.00010958,2]
[333475955,1722173434411,-522.12585505,0.00010958,2]
[333475956,1722173434420,-200.0,0.00010959,2]
[333475957,1722173434430,-229.852,0.00010981,2]
[333475958,1722173434439,-155.0,0.0001099,2]
[333475959,1722173434449,-179.02196653,0.00010997,2]
[333475960,1722173434459,-716.08786612,0.00010997,2]
[333475961,1722173434468,-32647.1454564,0.00010998,2]
[333475962,1722173434477,-5024.6995871,0.00010998,2]
[333475963,1722173434487,-2597.54,0.00010999,2]
[333475964,1722173434497,-2597.54,0.00010999,2]
[333475965,1722173434506,-2597.54,0.00010999,2]
[333475966,1722173434516,-2597.54,0.00010999,2]
[333475967,1722173434527,-2597.54,0.00010999,2]
[333475968,1722173434537,-2597.54,0.00010999,2]
[333475969,1722173434547,-2597.54,0.00010999,2]
[333475970,1722173434556,-2597.54,0.00010999,2]
[333475971,1722173434565,-2597.54,0.00010999,2]
[333475972,1722173434575,-2597.54,0.00010999,2]
[333475973,1722173434584,-2597.54,0.00010999,2]
[333475974,1722173434594,-2597.54,0.00010999,2]
[333475975,1722173434603,-2597.54,0.00010999,2]
[333475976,1722173434613,-2597.54,0.00010999,2]
[333475977,1722173434623,-2597.54,0.00010999,2]
[333475978,1722173434633,-2597.54,0.00010999,2]
[333475979,1722173434642,-2597.54,0.00010999,2]
[333475980,1722173434651,-2597.54,0.00010999,2]
[333475981,1722173434661,-2597.54,0.00010999,2]
[333475982,1722173434670,-2597.54,0.00010999,2]
[333475983,1722173434680,-2597.54,0.00010999,2]
[333475984,1722173434689,-2597.54,0.00010999,2]
[333475985,1722173434699,-2597.68963419,0.00010999,2]
[333475986,1722173434708,-201.76554012,0.00010999,3]
[333475987,1722173434718,-1064.40851654,0.00010999,3]
[333475988,1722173434727,-500.0,0.00010999,2]
[333475989,1722173434737,-500.0,0.00010999,2]
[333475990,1722173434747,-551.13528779,0.00010999,2]
[333475991,1722173434756,-500.0,0.00010999,2]
[333475992,1722173434766,-500.0,0.00010999,2]
[333475993,1722173434775,-843.5,0.00010999,2]
[333475994,1722173434785,-843.5,0.00010999,2]
[333475995,1722173434794,-843.5,0.00010999,2]
[333475996,1722173434804,-843.5,0.00010999,2]
[333475997,1722173434813,-843.5,0.00010999,2]
[333475998,1722173434823,-843.5,0.00010999,2]
[333475999,1722173434833,-843.5,0.00010999,2]
[333476000,1722173434842,-843.5,0.00010999,2]
[333476001,1722173434853,-843.5,0.00010999,2]
[333476002,1722173434863,-843.5,0.00010999,2]
[333476003,1722173434872,-843.5,0.00010999,2]
[333476004,1722173434882,-843.5,0.00010999,2]
[333476005,1722173434891,-843.5,0.00010999,2]
[333476006,1722173434901,-843.5,0.00010999,2]
[333476007,1722173434911,-500.0,0.00010999,2]
[333476008,1722173434921,-843.5,0.00010999,2]
[333476009,1722173434931,-500.0,0.00010999,2]
[333476010,1722173434940,-843.5,0.00010999,2]
[333476011,1722173434950,-449.41,0.00010999,2]
[333476012,1722173434960,-843.5,0.00010999,2]
[333476013,1722173434969,-843.5,0.00010999,2]
[333476014,1722173434978,-843.5,0.00010999,2]
[333476015,1722173434988,-843.5,0.00010999,2]
[333476016,1722173434998,-843.5,0.00010999,2]
[333476017,1722173435007,-843.5,0.00010999,2]
[333476018,1722173435017,-843.5,0.00010999,2]
[333476019,1722173435028,-843.61325649,0.00010999,2]
[333476020,1722173435038,-500.0,0.00010999,2]
[333476021,1722173435048,-500.0,0.00010999,2]
[333476022,1722173435057,-500.0,0.00010999,2]
[333476023,1722173435067,-500.0,0.00010999,2]
[333476024,1722173435077,-500.0,0.00010999,2]
[333476025,1722173435087,-500.0,0.00010999,2]
[333476026,1722173435096,-500.0,0.00010999,2]
[333476027,1722173435106,-500.0,0.00010999,2]
[333476028,1722173435116,-500.0,0.00010999,2]
[333476029,1722173435126,-500.0,0.00010999,2]
[333476030,1722173435135,-500.0,0.00010999,2]
[333476031,1722173435144,-500.0,0.00010999,2]
[333476032,1722173435154,-500.0,0.00010999,2]
[333476033,1722173435163,-500.0,0.00010999,2]
[333476034,1722173435172,-500.0,0.00010999,2]
[333476035,1722173435182,-500.0,0.00010999,2]
[333476036,1722173435192,-500.0,0.00010999,2]
[333476037,1722173435201,-500.0,0.00010999,2]
[333476038,1722173435211,-500.0,0.00010999,2]
[333476039,1722173435225,-500.0,0.00010999,2]
[333476040,1722173435235,-357.32,0.00010999,2]
[333476041,1722173435244,-500.0,0.00010999,2]
[333476042,1722173435253,-500.0,0.00010999,2]
[333476043,1722173435263,-500.0,0.00010999,2]